[Event "Weekend Groninger Combinatie 2019"]
[Site "Groningen"]
[Date "2019.06.02"]
[Round "7.6"]
[White "Bosboom, Ardin"]
[Black "Pel, Bonno"]
[Result "0-1"]
[ECO "A41"]
[WhiteElo "1965"]
[BlackElo "2260"]
[Annotator "ChessBase"]
[PlyCount "108"]
[EventDate "2019.05.30"]
[EventType "swiss"]
[EventCountry "NED"]
[SourceTitle "playchess.com"]
[Source "ChessBase"]
[SourceQuality "1"]
[TimeControl "5400+30"]

1. d4 {[%emt 0:00:00]} g6 {[%emt 0:00:00]} 2. c4 {[%emt 0:00:04]} Bg7 {[%emt 0:00:00]} 3. Nc3 {[%emt 0:00:47]} d6 {[%emt 0:00:06]} 4. Nf3 {[%emt 0:00:49]} Nd7 {[%emt 0:01:08]} 5. g3 {[%emt 0:00:46]} c6 {[%emt 0:01:41]} 6. Bg2 {[%emt 0:00:22]} a6 {[%emt 0:00:24]} 7. a4 {[%emt 0:04:32]} a5 {[%emt 0:05:12]} 8. O-O {[%emt 0:01:14]} Ngf6 {[%emt 0:00:40]} 9. e4 {[%emt 0:02:02]} O-O {[%emt 0:00:32]} 10. h3 {[%emt 0:01:19]} e5 {[%emt 0:03:20]} 11. Be3 {[%emt 0:07:49]} Qe7 {[%emt 0:01:35]} 12. d5 {[%emt 0:02:44]} Nc5 {[%emt 0:01:23]} 13. Ne1 {[%emt 0:02:36]} Nfd7 {[%emt 0:04:24]} 14. Nd3 {[%emt 0:02:30]} Nxd3 {[%emt 0:01:32]} 15. Qxd3 {[%emt 0:00:05]} Nc5 {[%emt 0:00:17]} 16. Qc2 {[%emt 0:03:26]} Bd7 {[%emt 0:01:20]} 17. Rad1 {[%emt 0:06:57]} Rac8 {[%emt 0:13:01]} 18. dxc6 {[%emt 0:03:20]} bxc6 {[%emt 0:06:55]} 19. Qd2 {[%emt 0:00:40]} Be6 {[%emt 0:00:26]} 20. Qxd6 {[%emt 0:01:10]} Qxd6 {[%emt 0:00:22]} 21. Rxd6 {[%emt 0:00:05]} Nb7 {[%emt 0:00:08]} 22. Rd2 {[%emt 0:12:53]} Bxc4 {[%emt 0:00:34]} 23. Rc1 {[%emt 0:00:09]} Nd8 {[%emt 0:05:42]} 24. Ne2 {[%emt 0:06:35]} Bb3 {[%emt 0:01:45]} 25. Rc3 {[%emt 0:01:45]} Rb8 {[%emt 0:03:58]} 26. Rc5 {[%emt 0:04:15]} Ra8 {[%emt 0:03:29]} 27. Rd3 {[%emt 0:02:41]} Bxa4 {[%emt 0:04:19]} 28. Ra3 {[%emt 0:00:29]} Bb5 {[%emt 0:02:31]} 29. Nc3 {[%emt 0:00:27]} Ne6 {[%emt 0:07:50]} 30. Nxb5 {[%emt 0:00:11]} Nxc5 {[%emt 0:01:42]} 31. Nc7 {[%emt 0:00:07]} Nb7 {[%emt 0:01:05]} 32. Nxa8 {[%emt 0:00:14]} Rxa8 {[%emt 0:00:06]} 33. Rd3 {[%emt 0:03:04]} Bf8 {[%emt 0:02:38]} 34. Bf1 {[%emt 0:02:09]} Bc5 {[%emt 0:07:53]} 35. Bxc5 {[%emt 0:02:07]} Nxc5 {[%emt 0:01:25]} 36. Rc3 {[%emt 0:00:05]} Nxe4 {[%emt 0:01:24]} 37. Rxc6 {[%emt 0:00:06]} Rb8 {[%emt 0:01:57]} 38. Bg2 {[%emt 0:03:24]} Nd2 {[%emt 0:01:09]} 39. Rc5 {[%emt 0:03:55]} e4 {[%emt 0:04:20]} 40. Rc2 {[%emt 0:07:37]} Rd8 {[%emt 0:00:13]} 41. g4 {[%emt 0:00:31]} Kg7 {[%emt 0:02:36]} 42. Kh2 {[%emt 0:00:24]} Kf6 {[%emt 0:02:11]} 43. Kg3 {[%emt 0:00:14]} Rd3+ {[%emt 0:00:23]} 44. Kh4 {[%emt 0:01:41]} h6 {[%emt 0:01:08]} 45. Rc6+ {[%emt 0:01:28]} Ke5 {[%emt 0:01:21]} 46. g5 {[%emt 0:00:30]} Nf3+ {[%emt 0:02:15]} 47. Bxf3 {[%emt 0:00:23]} hxg5+ {[%emt 0:00:05]} 48. Kxg5 {[%emt 0:00:24]} Rxf3 {[%emt 0:00:05]} 49. Rc5+ {[%emt 0:02:20]} Kd4 {[%emt 0:00:14]} 50. Rxa5 {[%emt 0:00:04]} Rxf2 {[%emt 0:00:06]} 51. Ra4+ {[%emt 0:00:40]} Kd3 {[%emt 0:00:07]} 52. Ra3+ {[%emt 0:00:21]} Kd2 {[%emt 0:00:15]} 53. Ra4 {[%emt 0:01:20]} e3 {[%emt 0:00:45]} 54. Rd4+ {[%emt 0:00:05]} Ke1 {[%emt 0:00:37]} 0-1

[Event "Weekend Groninger Combinatie 2019"]
[Site "Groningen"]
[Date "2019.06.02"]
[Round "7.7"]
[White "De Boer, Bas"]
[Black "Noordenbos, Daan"]
[Result "0-1"]
[ECO "E62"]
[WhiteElo "2095"]
[BlackElo "2033"]
[Annotator "NA"]
[PlyCount "80"]
[EventDate "2019.05.30"]
[EventType "swiss"]
[EventCountry "NED"]
[SourceTitle "playchess.com"]
[Source "ChessBase"]
[SourceQuality "1"]
[TimeControl "5400+30"]

1. Nf3 {[%emt 0:02:31]} Nf6 2. c4 {[%emt 0:00:30]} g6 {[%emt 0:05:10]} 3. Nc3 {[%emt 0:00:30]} Bg7 {[%emt 0:00:30]} 4. g3 {[%emt 0:00:30]} O-O {[%emt 0:00:30]} 5. Bg2 {[%emt 0:00:30]} d6 {[%emt 0:00:30]} 6. O-O {[%emt 0:00:30]} Nc6 {[%emt 0:00:30]} 7. d4 {[%emt 0:00:30]} e5 {[%emt 0:00:30]} 8. d5 {[%emt 0:00:30]} Ne7 {[%emt 0:00:30]} 9. e4 {[%emt 0:00:30]} a5 {[%emt 0:00:30]} 10. h3 {[%emt 0:00:30]} Nd7 {[%emt 0:00:30]} 11. Be3 {[%emt 0:03:11]} h6 {[%emt 0:02:07]} 12. Nd2 {[%emt 0:00:47]} f5 {[%emt 0:00:28]} 13. exf5 {[%emt 0:04:33]} Nxf5 {[%emt 0:00:52]} 14. Nde4 {[%emt 0:00:08]} b6 {[%emt 0:03:03]} 15. Qd2 {[%emt 0:04:11]} Kh7 {[%emt 0:00:40]} 16. h4 {[%emt 0:03:36]} Nf6 {[%emt 0:01:35]} 17. Nxf6+ {[%emt 0:01:42]} Bxf6 {[%emt 0:02:24]} 18. Ne4 {[%emt 0:00:08]} Bg7 {[%emt 0:01:57]} 19. Rac1 {[%emt 0:01:01]} Bd7 {[%emt 0:01:15]} 20. b3 {[%emt 0:00:36]} Qe7 {[%emt 0:01:33]} 21. a3 {[%emt 0:03:05]} Qf7 {[%emt 0:09:51]} 22. Rc3 {[%emt 0:03:08]} Nd4 {[%emt 0:03:26]} 23. Bxd4 {[%emt 0:16:54]} exd4 {[%emt 0:00:14]} 24. Rd3 {[%emt 0:01:22]} Rae8 {[%emt 0:02:08]} 25. Re1 {[%emt 0:01:28]} Bf5 {[%emt 0:01:37]} 26. b4 {[%emt 0:03:34]} axb4 {[%emt 0:02:21]} 27. axb4 {[%emt 0:00:14]} Kh8 {[%emt 0:02:11]} 28. Ra3 {[%emt 0:01:38]} Re7 {[%emt 0:03:36]} 29. Ra7 {[%emt 0:08:21]} Rfe8 {[%emt 0:05:32]} 30. f3 {[%emt 0:02:10]} Kh7 {[%emt 0:06:33]} 31. Raa1 {[%emt 0:04:57]} Be5 {[%emt 0:03:32]} 32. f4 {[%emt 0:03:32]} Bg7 {[%emt 0:02:50]} 33. Nf2 {[%emt 0:00:12]} Re3 {[%emt 0:01:11]} 34. g4 {[%emt 0:10:17]} Bc8 {[%emt 0:06:34]} 35. Rf1 {[%emt 0:02:14]} Qxf4 {[%emt 0:04:27]} 36. Nd1 {[%emt 0:01:47]} Qxg4 {[%emt 0:00:58]} 37. Nxe3 {[%emt 0:01:58]} dxe3 {[%emt 0:00:16]} 38. Qe1 {[%emt 0:00:28]} e2 {[%emt 0:01:30]} 39. Rf7 {[%emt 0:00:59]} Qd4+ {[%emt 0:00:15]} 40. Kh2 {[%emt 0:01:53]} Qe5+ {[%emt 0:00:18]} 0-1

[Event "Weekend Groninger Combinatie 2019"]
[Site "Groningen"]
[Date "2019.06.02"]
[Round "7.8"]
[White "Elgersma, Simon"]
[Black "Traetmar, Mattis"]
[Result "1/2-1/2"]
[ECO "B90"]
[WhiteElo "2088"]
[BlackElo "1988"]
[Annotator "NA"]
[PlyCount "145"]
[EventDate "2019.05.30"]
[EventType "swiss"]
[EventCountry "NED"]
[SourceTitle "playchess.com"]
[Source "ChessBase"]
[SourceQuality "1"]
[TimeControl "5400+30"]

1. e4 {[%emt 0:00:01]} c5 {[%emt 0:00:00]} 2. Nf3 {[%emt 0:00:09]} d6 {[%emt 0:00:00]} 3. d4 {[%emt 0:00:34]} cxd4 {[%emt 0:00:00]} 4. Nxd4 {[%emt 0:00:06]} Nf6 {[%emt 0:00:00]} 5. Nc3 {[%emt 0:00:07]} a6 {[%emt 0:00:00]} 6. h3 {[%emt 0:03:05]} e5 {[%emt 0:00:17]} 7. Nb3 {[%emt 0:00:07]} Be6 {[%emt 0:02:49]} 8. f4 {[%emt 0:00:10]} Qc7 {[%emt 0:01:42]} 9. f5 {[%emt 0:04:38]} Bc4 {[%emt 0:00:23]} 10. g4 {[%emt 0:08:06]} Bxf1 {[%emt 0:06:21]} 11. Rxf1 {[%emt 0:01:34]} Qc4 {[%emt 0:00:07]} 12. Qd3 {[%emt 0:02:19]} Qxd3 {[%emt 0:02:06]} 13. cxd3 {[%emt 0:03:45]} Nc6 {[%emt 1:22:45]} 14. g5 {[%emt 0:02:18]} Nd7 {[%emt 0:00:00]} 15. Nd5 {[%emt 0:00:27]} Rc8 {[%emt 0:00:00]} 16. Be3 {[%emt 0:07:17]} Ne7 {[%emt 0:00:00]} 17. Nb4 {[%emt 0:03:28]} Nc5 {[%emt 0:00:00]} 18. Na5 {[%emt 0:15:28]} b6 {[%emt 0:00:00]} 19. Nc4 {[%emt 0:01:50]} Nxd3+ {[%emt 0:00:00]} 20. Nxd3 {[%emt 0:04:41]} Rxc4 {[%emt 0:00:00]} 21. Kd2 {[%emt 0:06:01]} d5 {[%emt 0:00:00]} 22. f6 {[%emt 0:05:17]} d4 {[%emt 0:00:00]} 23. Bg1 {[%emt 0:00:42]} Ng6 {[%emt 0:00:00]} 24. fxg7 {[%emt 0:06:32]} Bxg7 {[%emt 0:00:00]} 25. Rac1 {[%emt 0:00:08]} b5 {[%emt 0:00:00]} 26. b3 {[%emt 0:00:51]} Rxc1 {[%emt 0:00:00]} 27. Rxc1 {[%emt 0:00:24]} O-O {[%emt 0:00:00]} 28. Ke2 {[%emt 0:07:47]} Ra8 {[%emt 0:00:00]} 29. Bh2 {[%emt 0:00:37]} h6 {[%emt 0:00:00]} 30. gxh6 {[%emt 0:01:00]} Bxh6 {[%emt 0:00:00]} 31. Rc6 {[%emt 0:01:36]} Bg7 {[%emt 0:00:00]} 32. Bg3 {[%emt 0:03:22]} f6 {[%emt 0:00:00]} 33. Nc5 {[%emt 0:01:33]} a5 {[%emt 0:00:00]} 34. h4 {[%emt 0:01:03]} Ne7 {[%emt 0:00:00]} 35. Rb6 {[%emt 0:00:03]} b4 {[%emt 0:00:00]} 36. h5 {[%emt 0:01:45]} Nc8 {[%emt 0:00:00]} 37. Rc6 {[%emt 0:00:58]} Ne7 {[%emt 0:00:00]} 38. Rb6 {[%emt 0:00:36]} Rc8 {[%emt 0:00:00]} 39. Rb5 {[%emt 0:00:26]} Nc6 {[%emt 0:00:00]} 40. Nd7 {[%emt 0:02:06]} Rc7 {[%emt 0:00:00]} 41. Rd5 {[%emt 0:00:52]} Ne7 {[%emt 0:00:00]} 42. Rxd4 {[%emt 0:00:12]} Rc2+ {[%emt 0:00:00]} 43. Rd2 {[%emt 0:00:06]} Rc3 {[%emt 0:00:02]} 44. Kf2 {[%emt 0:03:05]} Kf7 {[%emt 0:00:51]} 45. Nb6 {[%emt 0:02:14]} Bh6 {[%emt 0:00:21]} 46. Re2 {[%emt 0:00:09]} Nc6 {[%emt 0:00:47]} 47. Nc4 {[%emt 0:00:47]} Nd4 {[%emt 0:00:43]} 48. Rb2 {[%emt 0:00:25]} a4 {[%emt 0:00:31]} 49. Kg2 {[%emt 0:00:36]} Bc1 {[%emt 0:01:53]} 50. Rf2 {[%emt 0:00:18]} Ke6 {[%emt 0:00:40]} 51. Nb6 {[%emt 0:02:13]} Be3 {[%emt 0:02:16]} 52. Rb2 {[%emt 0:00:28]} a3 {[%emt 0:01:12]} 53. Rb1 {[%emt 0:00:10]} Rc2+ {[%emt 0:00:13]} 54. Kh3 {[%emt 0:00:23]} Rb2 {[%emt 0:01:07]} 55. Ra1 {[%emt 0:01:12]} Nc2 {[%emt 0:00:05]} 56. Rd1 {[%emt 0:00:06]} Bxb6 {[%emt 0:00:59]} 57. h6 {[%emt 0:00:01]} Kf7 {[%emt 0:00:10]} 58. h7 {[%emt 0:00:04]} Kg7 {[%emt 0:00:04]} 59. Rd7+ {[%emt 0:00:32]} Kh8 {[%emt 0:00:03]} 60. Bh4 {[%emt 0:00:31]} Bd8 {[%emt 0:00:19]} 61. Kg4 {[%emt 0:02:10]} f5+ {[%emt 0:00:59]} 62. Kh5 {[%emt 0:00:38]} Bxh4 {[%emt 0:04:11]} 63. Kh6 {[%emt 0:00:08]} Ne3 {[%emt 0:01:47]} 64. Rf7 {[%emt 0:00:10]} Be7 {[%emt 0:02:00]} 65. Rxe7 {[%emt 0:00:04]} Rh2+ {[%emt 0:00:07]} 66. Kg6 {[%emt 0:00:12]} Rg2+ {[%emt 0:00:15]} 67. Kh6 {[%emt 0:01:17]} Rh2+ {[%emt 0:00:35]} 68. Kg6 {[%emt 0:00:20]} Rg2+ {[%emt 0:00:06]} 69. Kh6 {[%emt 0:01:04]} Ng4+ {[%emt 0:00:19]} 70. Kg6 {[%emt 0:00:05]} Nf2+ {[%emt 0:02:10]} 71. Kh6 {[%emt 0:00:10]} Rh2+ {[%emt 0:00:40]} 72. Kg6 {[%emt 0:00:13]} Rg2+ {[%emt 0:00:12]} 73. Kh6 {[%emt 0:00:05]} 1/2-1/2

[Event "Weekend Groninger Combinatie 2019"]
[Site "Groningen"]
[Date "2019.06.02"]
[Round "7.9"]
[White "Keuning, Selwin"]
[Black "Wuijts, Johan"]
[Result "1-0"]
[ECO "C01"]
[WhiteElo "2070"]
[BlackElo "1969"]
[Annotator "NA"]
[PlyCount "53"]
[EventDate "2019.05.30"]
[EventType "swiss"]
[EventCountry "NED"]
[SourceTitle "playchess.com"]
[Source "ChessBase"]
[SourceQuality "1"]
[TimeControl "5400+30"]

1. e4 {[%emt 0:00:00]} e6 {[%emt 0:00:00]} 2. d4 {[%emt 0:00:00]} d5 {[%emt 0:00:00]} 3. Nc3 {[%emt 0:00:00]} Bb4 {[%emt 0:00:00]} 4. exd5 {[%emt 0:00:00]} exd5 {[%emt 0:00:00]} 5. Bd3 $11 {[%emt 0:00:02]} Nc6 {[%emt 0:06:28]} 6. Nf3 {[%emt 0:00:39]} Nge7 {[%emt 0:02:59]} 7. O-O {[%emt 0:01:33]} O-O {[%emt 0:00:05]} 8. Ne2 {[%emt 0:00:27]} Bf5 {[%emt 0:03:13]} 9. c3 {[%emt 0:00:26]} Bd6 {[%emt 0:00:05]} 10. Bf4 {[%emt 0:00:10]} Bxd3 {[%emt 0:01:59]} 11. Qxd3 {[%emt 0:00:29]} Bxf4 {[%emt 0:00:55]} 12. Nxf4 {[%emt 0:00:06]} Ng6 {[%emt 0:00:08]} 13. Nxg6 {[%emt 0:02:00]} hxg6 {[%emt 0:02:55]} 14. b4 {[%emt 0:10:55]} Re8 {[%emt 0:02:05]} 15. b5 {[%emt 0:01:11]} Na5 {[%emt 0:02:22]} 16. Ne5 {[%emt 0:00:22]} Qf6 {[%emt 0:03:31]} 17. Rae1 {[%emt 0:05:51]} Qf5 {[%emt 0:04:49]} 18. Qg3 {[%emt 0:01:11]} Re7 {[%emt 0:27:39]} 19. Qh4 {[%emt 0:19:35]} Rae8 {[%emt 0:00:57]} 20. Nxg6 {[%emt 0:00:28]} Qxg6 {[%emt 0:02:24]} 21. Rxe7 {[%emt 0:00:03]} f6 {[%emt 0:02:51]} 22. Rxe8+ {[%emt 0:55:32]} Qxe8 {[%emt 0:00:17]} 23. Qf4 {[%emt 0:00:30]} Qxb5 {[%emt 0:02:33]} 24. Qxc7 {[%emt 0:00:00]} Nc6 {[%emt 0:00:39]} 25. Qc8+ {[%emt 0:00:00]} Kh7 {[%emt 0:00:07]} 26. Qf5+ {[%emt 0:00:00]} Kg8 {[%emt 0:00:02]} 27. Re1 {[%emt 0:00:00]} 1-0

[Event "Weekend Groninger Combinatie 2019"]
[Site "Groningen"]
[Date "2019.06.02"]
[Round "7.10"]
[White "Seijen, Henk"]
[Black "Nicolai, Amir"]
[Result "0-1"]
[ECO "B33"]
[WhiteElo "1750"]
[BlackElo "2095"]
[Annotator "NA"]
[PlyCount "56"]
[EventDate "2019.05.30"]
[EventType "swiss"]
[EventCountry "NED"]
[SourceTitle "playchess.com"]
[Source "ChessBase"]
[SourceQuality "1"]
[TimeControl "5400+30"]

1. e4 {[%emt 0:00:00]} c5 {[%emt 0:00:00]} 2. Nf3 {[%emt 0:00:00]} Nc6 {[%emt 0:00:00]} 3. d4 {[%emt 0:00:00]} cxd4 {[%emt 0:00:00]} 4. Nxd4 {[%emt 0:00:07]} Nf6 {[%emt 0:00:00]} 5. Nc3 {[%emt 0:00:11]} e5 {[%emt 0:00:00]} 6. Ndb5 {[%emt 0:01:01]} d6 {[%emt 0:00:00]} 7. Bg5 {[%emt 0:00:41]} a6 {[%emt 0:00:05]} 8. Na3 {[%emt 0:00:11]} b5 {[%emt 0:00:04]} 9. Bxf6 {[%emt 0:00:55]} gxf6 {[%emt 0:00:07]} 10. Nd5 {[%emt 0:00:09]} Bg7 {[%emt 0:00:09]} 11. Bd3 {[%emt 0:01:14]} Ne7 {[%emt 0:00:34]} 12. Nxe7 {[%emt 0:01:32]} Qxe7 {[%emt 0:00:07]} 13. c3 {[%emt 1:30:29]} f5 {[%emt 0:08:10]} 14. Nc2 {[%emt 0:00:00]} Qb7 {[%emt 0:05:46]} 15. Qe2 {[%emt 0:00:00]} fxe4 {[%emt 0:01:51]} 16. Qxe4 {[%emt 0:00:00]} d5 {[%emt 0:00:34]} 17. Qh4 {[%emt 0:00:00]} f5 {[%emt 0:03:03]} 18. O-O-O {[%emt 0:00:00]} O-O {[%emt 0:01:12]} 19. f3 {[%emt 0:00:00]} a5 {[%emt 0:03:56]} 20. Ne3 {[%emt 0:00:00]} b4 {[%emt 0:06:13]} 21. Nxd5 {[%emt 0:00:00]} Kh8 {[%emt 0:03:04]} 22. c4 {[%emt 0:00:00]} Be6 {[%emt 0:03:49]} 23. g4 {[%emt 0:00:00]} Bxd5 {[%emt 0:05:54]} 24. cxd5 {[%emt 0:00:00]} Qxd5 {[%emt 0:57:22]} 25. Kb1 {[%emt 0:00:00]} e4 {[%emt 0:00:00]} 26. Be2 {[%emt 0:00:00]} Qe5 {[%emt 0:00:00]} 27. Rd2 {[%emt 0:07:00]} b3 {[%emt 0:01:30]} 28. a3 {[%emt 0:00:00]} e3 {[%emt 0:00:00]} 0-1